fUSD/lending_fUSD_20250606
["ID","MTS","AMOUNT","RATE_DAILY","PERIOD"]
[364777779,1749238283194,-1254.37,0.00028547,5]
[364777780,1749238283204,-8256.04,0.00028547,5]
[364777781,1749238283213,-2434.11,0.00028547,5]
[364777782,1749238283223,-480.0,0.00028547,5]
[364777783,1749238283232,-3890.87,0.00028547,5]
[364777784,1749238283242,-996.25,0.00028547,5]
[364777785,1749238283252,-665.27,0.00028547,5]
[364777786,1749238283262,-1569.61,0.00028547,5]
[364777787,1749238283272,-393.14228996,0.00028547,5]
[364777788,1749238283281,-480.0,0.00028547,5]
[364777789,1749238283291,-480.0,0.00028547,5]
[364777790,1749238283300,-714.18,0.00028547,5]
[364777791,1749238283311,-528.51,0.00028547,5]
[364777792,1749238283320,-675.52,0.00028547,5]
[364777793,1749238283330,-1429.09,0.00028547,5]
[364777794,1749238283340,-665.04,0.00028547,5]
[364777795,1749238283349,-151.0,0.00028547,7]
[364777796,1749238283358,-2692.59,0.00028547,5]
[364777797,1749238283368,-2650.03,0.00028547,5]
[364777798,1749238283378,-189.067661,0.00028547,7]
[364777799,1749238283388,-1407.53,0.00028547,5]
[364777800,1749238283398,-480.0,0.00028547,5]
[364777801,1749238283408,-1044.58,0.00028547,5]
[364777802,1749238283417,-189.067662,0.00028547,7]
[364777803,1749238283427,-1121.69,0.00028547,5]
[364777804,1749238283437,-179.508406,0.00028547,7]
[364777805,1749238283447,-1259.89,0.00028547,5]
[364777806,1749238283457,-461.975126,0.00028547,7]
[364777807,1749238283466,-151.0,0.00028547,7]
[364777808,1749238283475,-1000.59,0.00028547,5]
[364777809,1749238283485,-179.50841486,0.00028547,7]
[364777810,1749238283495,-461.97512,0.00028547,7]
[364777811,1749238283505,-682.93,0.00028547,5]
[364777812,1749238283518,-10449.09,0.00028547,5]
[364777813,1749238283527,-480.0,0.00028547,5]
[364777814,1749238283536,-2196.0,0.00028547,5]
[364777815,1749238283547,-2596.53,0.00028547,5]
[364777816,1749238283557,-2684.12,0.00028547,5]
[364777817,1749238283566,-480.0,0.00028547,5]
[364777818,1749238283577,-1035.64,0.00028547,5]
[364777819,1749238283589,-1413.85,0.00028547,5]
[364777820,1749238283601,-1346.8,0.00028547,5]
[364777821,1749238283612,-1405.33,0.00028547,5]
[364777822,1749238283623,-269.254107,0.00028547,7]
[364777823,1749238283632,-789.6,0.00028547,5]
[364777824,1749238283642,-685.7,0.00028547,5]
[364777825,1749238283651,-269.254108,0.00028547,7]
[364777826,1749238283661,-151.0,0.00028547,7]
[364777827,1749238283670,-887.66,0.00028547,5]
[364777828,1749238283681,-480.0,0.00028547,5]
[364777829,1749238283690,-1130.7,0.00028547,5]
[364777830,1749238283699,-480.0,0.00028547,5]
[364777831,1749238283708,-2132.1,0.00028547,5]
[364777832,1749238283718,-480.0,0.00028547,5]
[364777833,1749238283727,-480.0,0.00028547,5]
[364777834,1749238283738,-1647.92,0.00028547,5]
[364777835,1749238283747,-834.35,0.00028547,5]
[364777836,1749238283757,-4392.99,0.00028547,5]
[364777837,1749238283766,-3015.43,0.00028547,5]
[364777838,1749238283778,-480.0,0.00028547,5]
[364777839,1749238283787,-1470.46,0.00028547,5]
[364777840,1749238283797,-1546.73,0.00028547,5]
[364777841,1749238283806,-1479.99,0.00028547,5]
[364777842,1749238283816,-1186.47,0.00028547,5]
[364777843,1749238283825,-514.62,0.00028547,5]
[364777844,1749238283834,-835.23,0.00028547,5]
[364777845,1749238283843,-480.0,0.00028547,5]
[364777846,1749238283852,-1102.69,0.00028547,5]
[364777847,1749238283861,-689.03,0.00028547,5]
[364777848,1749238283871,-1040.68,0.00028547,5]
[364777849,1749238283880,-995.31,0.00028547,5]
[364777850,1749238283890,-480.0,0.00028547,5]
[364777851,1749238283899,-1046.65,0.00028547,5]
[364777852,1749238283909,-523.71,0.00028547,5]
[364777853,1749238283918,-480.0,0.00028547,5]
[364777854,1749238283928,-480.0,0.00028547,5]
[364777855,1749238283937,-3516.83,0.00028547,5]
[364777856,1749238283947,-480.0,0.00028547,5]
[364777857,1749238283956,-7192.4,0.00028547,5]
[364777858,1749238283966,-480.0,0.00028547,5]
[364777859,1749238283975,-1068.47,0.00028547,5]
[364777860,1749238283984,-843.7,0.00028547,5]
[364777861,1749238283994,-480.0,0.00028547,5]
[364777862,1749238284003,-1025.1,0.00028547,5]
[364777863,1749238284013,-579.69,0.00028547,5]
[364777864,1749238284022,-618.2,0.00028547,5]
[364777865,1749238284031,-606.91,0.00028547,5]
[364777866,1749238284040,-480.0,0.00028547,5]
[364777867,1749238284049,-7137.4,0.00028547,5]
[364777868,1749238284058,-480.0,0.00028547,5]
[364777869,1749238284068,-151.0,0.00028547,7]
[364777870,1749238284077,-2026.65,0.00028547,5]
[364777871,1749238284086,-2994.18,0.00028547,5]
[364777872,1749238284096,-11496.53,0.00028547,5]
[364777873,1749238284105,-1784.57,0.00028547,5]
[364777874,1749238284114,-514.45,0.00028547,5]
[364777875,1749238284124,-480.0,0.00028547,5]
[364777876,1749238284133,-1232.611643,0.00028547,7]
[364777877,1749238284143,-480.0,0.00028547,5]
[364777878,1749238284152,-480.0,0.00028547,5]
[364777879,1749238284161,-3152.9,0.00028547,5]
[364777880,1749238284172,-1227.31,0.00028547,5]
[364777881,1749238284182,-480.0,0.00028547,5]
[364777882,1749238284191,-497.39,0.00028547,5]
[364777883,1749238284202,-4337.15,0.00028547,5]
[364777884,1749238284212,-1232.611642,0.00028547,7]
[364777885,1749238284222,-480.0,0.00028547,5]
[364777886,1749238284231,-480.0,0.00028547,5]
[364777887,1749238284241,-1547.12,0.00028547,5]
[364777888,1749238284250,-3302.16,0.00028547,5]
[364777889,1749238284260,-533.36,0.00028547,5]
[364777890,1749238284270,-747.92,0.00028547,5]
[364777891,1749238284280,-189.938106,0.00028547,7]
[364777892,1749238284289,-1427.98,0.00028547,5]
[364777893,1749238284299,-572.16,0.00028547,5]
[364777894,1749238284308,-151.0,0.00028547,7]
[364777895,1749238284319,-577.87,0.00028547,5]
[364777896,1749238284329,-480.0,0.00028547,5]
[364777897,1749238284340,-189.938105,0.00028547,7]
[364777898,1749238284350,-1647.97,0.00028547,5]
[364777899,1749238284359,-480.0,0.00028547,5]
[364777900,1749238284370,-480.0,0.00028547,5]
[364777901,1749238284490,-972.75,0.00028547,5]
[364777902,1749238284500,-1458.85,0.00028547,5]
[364777903,1749238284512,-551.69,0.00028547,5]
[364777904,1749238284523,-480.0,0.00028547,5]
[364777905,1749238284532,-1271.48,0.00028547,5]
[364777906,1749238284541,-2558.54,0.00028547,5]
[364777907,1749238284552,-744.59,0.00028547,5]
[364777908,1749238284561,-535.17,0.00028547,5]
[364777909,1749238284570,-1780.07,0.00028547,5]
[364777910,1749238284579,-825.48,0.00028547,5]
[364777911,1749238284589,-1087.45,0.00028547,5]
[364777912,1749238284599,-480.0,0.00028547,5]
[364777913,1749238284608,-3642.41,0.00028547,5]
[364777914,1749238284618,-602.35,0.00028547,5]
[364777915,1749238284628,-457.404501,0.00028547,5]
[364777916,1749238284638,-980.76,0.00028547,5]
[364777917,1749238284647,-2952.08,0.00028547,5]
[364777918,1749238284656,-1491.88,0.00028547,5]
[364777919,1749238284666,-513.98,0.00028547,5]
[364777920,1749238284676,-545.79,0.00028547,5]
[364777921,1749238284686,-480.0,0.00028547,5]
[364777922,1749238284699,-533.03,0.00028547,5]
[364777923,1749238284707,-1677.66,0.00028547,5]
[364777924,1749238284718,-480.0,0.00028547,5]
[364777925,1749238284729,-480.0,0.00028547,5]
[364777926,1749238284740,-4496.09,0.00028547,5]
[364777927,1749238284750,-1755.28,0.00028547,5]
[364777928,1749238284760,-1692.52,0.00028547,5]
[364777929,1749238284773,-662.984692,0.00028547,7]
[364777930,1749238284783,-1650.3,0.00028547,5]
[364777931,1749238284792,-835.24,0.00028547,5]
[364777932,1749238284804,-480.0,0.00028547,5]
[364777933,1749238284814,-480.0,0.00028547,2]
[364777934,1749238284823,-5267.72,0.00028547,5]
[364777935,1749238284834,-934.457951,0.00028547,5]
[364777936,1749238284843,-662.984692,0.00028547,7]
[364777937,1749238284852,-502.12,0.00028547,5]
[364777938,1749238284861,-729.42,0.00028547,5]
[364777939,1749238284871,-1800.89,0.00028547,5]
[364777940,1749238284881,-699.03,0.00028547,5]
[364777941,1749238284891,-498.83,0.00028547,5]
[364777942,1749238284901,-1536.39,0.00028547,5]
[364777943,1749238284912,-5553.8,0.00028547,5]
[364777944,1749238284922,-698.46,0.00028547,2]
[364777945,1749238284933,-480.0,0.00028547,5]
[364777946,1749238284942,-900.05,0.00028547,5]
[364777947,1749238284952,-694.21,0.00028547,5]
[364777948,1749238284961,-2081.72,0.00028547,5]
[364777949,1749238284970,-1295.96,0.00028547,5]
[364777950,1749238284979,-483.69,0.00028547,5]
[364777951,1749238284988,-484.44,0.00028547,5]
[364777952,1749238284997,-480.0,0.00028547,5]
[364777953,1749238285006,-10178.54,0.00028547,5]
[364777954,1749238285015,-480.0,0.00028547,5]
[364777955,1749238285024,-480.0,0.00028547,5]
[364777956,1749238285034,-2453.62,0.00028547,5]
[364777957,1749238285043,-364.90704858,0.00028547,2]
[364777958,1749238285052,-1244.8315352,0.00028548,30]
[364777959,1749238285061,-40.00922533,0.00028548,2]
[364777960,1749238285353,-264.61535196,0.00028548,2]
[364777961,1749238286888,-1463.2517875,0.000199,2]
[364777963,1749238591574,150.0,0.000195,5]
[364777966,1749238668290,-151.0,0.000199,2]
[364777967,1749238668313,-800.0,0.00020019,4]
[364777968,1749238668336,-800.0,0.00020137,4]
[364777969,1749238668360,-250.0,0.00020375,2]
[364777970,1749238668383,-166.43718263,0.00020448,2]
[364777971,1749238675552,-250.0,0.00021777,2]
[364777972,1749238675575,-1200.0,0.00021889,2]
[364777973,1749238675596,-300.0,0.00021889,2]
[364777974,1749238675618,-282.56281737,0.00021889,2]
[364777976,1749238736050,190.25,0.00013699,2]
[364777979,1749238842488,979.19216369,0.00035616,120]
[364777980,1749238860730,250.0,0.00019,2]
[364777981,1749238867016,1000.0,0.00035616,120]
[364778002,1749239431365,-151.0,0.000201,2]
[364778003,1749239431375,-238.74,0.00020126,2]
[364778004,1749239431470,-11.26,0.00020126,2]
[364778005,1749239431481,-190.25,0.00020187,2]
[364778006,1749239431490,-167.69,0.00020932,2]
[364778007,1749239431499,-300.0,0.0002189,2]
[364778008,1749239431508,-800.0,0.0002189,4]
[364778009,1749239431517,-800.0,0.0002189,4]
[364778010,1749239431527,-300.0,0.00021939,2]
[364778011,1749239431536,-1200.0,0.00021939,2]
[364778012,1749239431546,-21779.3594588,0.0002194,2]
[364778013,1749239431555,-250.0,0.00022071,2]
[364778014,1749239431564,-250.0,0.00022135,2]
[364778015,1749239431573,-1215.33,0.00023568,2]
[364778016,1749239431583,-1097.45088849,0.00023578,2]
[364778017,1749239431592,-14398.80546917,0.00023579,2]
[364778018,1749239431601,-91338.6259077,0.00023589,7]
[364778019,1749239431611,-500.0,0.000236,2]
[364778020,1749239431620,-500.0,0.000236,2]
[364778021,1749239431629,-500.0,0.000236,2]
[364778022,1749239431638,-500.0,0.000236,2]
[364778023,1749239431648,-1680.0,0.00023954,2]
[364778024,1749239431657,-23900.0,0.00024084,2]
[364778025,1749239431667,-200.0,0.00024117,2]
[364778026,1749239431676,-1930.50290455,0.00024133,2]
[364778027,1749239431687,-5666.74316341,0.0002418,2]
[364778028,1749239431696,-389.46,0.00024233,30]
[364778030,1749239431706,-151.0,0.00024394,2]
[364778031,1749239431715,-207.4,0.00024394,2]
[364778032,1749239431725,-1000.0,0.00024394,2]
[364778033,1749239431736,-1930.50290454,0.00024663,2]
[364778034,1749239431746,-1852.42,0.00024685,2]
[364778035,1749239431755,-7354.47280188,0.00024692,2]
[364778036,1749239431767,-6160.66719812,0.00024692,2]
[364778037,1749239431776,-482.08780299,0.000247,11]
[364778038,1749239431785,-482.08780271,0.000247,11]
[364778039,1749239431794,-482.08780271,0.000247,11]
[364778040,1749239431803,-482.08780271,0.000247,11]
[364778041,1749239431812,-482.08780271,0.000247,11]
[364778042,1749239431821,-482.08780271,0.00024831,12]
[364778043,1749239431830,-1000.0,0.00024925,2]
[364778044,1749239431840,-1000.0,0.00024936,2]
[364778045,1749239431850,-154.0,0.00025,7]
[364778046,1749239431859,-288.69,0.00025054,2]
[364778047,1749239431868,-2751.0,0.00025085,2]
[364778048,1749239431877,-163.09,0.00025156,2]
[364778049,1749239431887,-164.27,0.00025163,2]
[364778050,1749239431898,-1930.50290454,0.00025192,2]
[364778051,1749239431910,-1275.04544745,0.00025255,2]
[364778052,1749239431919,-283.43,0.0002535,2]
[364778053,1749239431928,-1769.29,0.00025385,2]
[364778054,1749239431938,-482.08780271,0.00025417,13]
[364778055,1749239431948,-9160.08,0.00025485,2]
[364778056,1749239431958,-1352.22,0.00025485,2]
[364778057,1749239431967,-150.0,0.00025485,7]
[364778058,1749239431978,-250.0,0.00025485,2]
[364778059,1749239431987,-2332.62511635,0.00025565,2]
[364778060,1749239431996,-188.9,0.00025596,2]
[364778061,1749239432006,-500.0,0.00025699,2]
[364778062,1749239432015,-1930.50290454,0.00025722,2]
[364778063,1749239432025,-156.587,0.00025763,2]
[364778064,1749239432036,-215.0738,0.00025763,2]
[364778065,1749239432047,-1215.33,0.00025831,2]
[364778066,1749239432057,-204.0,0.00025974,2]
[364778067,1749239432067,-288.69,0.00025994,2]
[364778068,1749239432076,-482.08780271,0.00026003,14]
[364778069,1749239432087,-2351.0,0.00026154,2]
[364778070,1749239432096,-1930.50290454,0.00026252,2]
[364778071,1749239432108,-150.0,0.00026472,2]
[364778072,1749239432118,-482.08780271,0.0002659,15]
[364778073,1749239432127,-190.25,0.00026676,2]
[364778074,1749239432137,-1930.50290454,0.00026781,2]
[364778075,1749239432147,-900.0,0.000268,9]
[364778076,1749239432158,-1900.0,0.000269,9]
[364778077,1749239432170,-288.69,0.00026933,2]
[364778078,1749239432179,-150.0,0.00027065,2]
[364778079,1749239432191,-162.380719,0.00027132,2]
[364778080,1749239432200,-223.0315306,0.00027132,2]
[364778081,1749239432210,-1037.0,0.00027133,2]
[364778082,1749239432219,-482.08780271,0.00027176,16]
[364778083,1749239432228,-2500.0,0.00027197,2]
[364778084,1749239432237,-1000.0,0.000272,4]
[364778085,1749239432247,-163.09,0.00027232,2]
[364778086,1749239432256,-166.72248083,0.00027287,2]
[364778087,1749239432266,-500.0,0.00027297,2]
[364778088,1749239432275,-41511.6914,0.00027297,2]
[364778089,1749239432285,-1000.0,0.00027297,2]
[364778090,1749239432295,-5000.0,0.00027297,2]
[364778091,1749239432304,-650.45577196,0.00027297,2]
[364778092,1749239432313,-828.8381128,0.00027297,2]
[364778093,1749239432324,-1930.50290454,0.00027311,2]
[364778094,1749239432333,-504.52442924,0.00027373,2]
[364778095,1749239432343,-504.02094777,0.00027373,2]
[364778096,1749239432352,-503.60598671,0.00027373,2]
[364778097,1749239432361,-500.0,0.00027373,2]
[364778098,1749239432371,-163.62461771,0.00027376,2]
[364778099,1749239432380,-37468.45046607,0.00027377,2]
[364778100,1749239432392,-782.84946423,0.00027377,2]
[364778101,1749239432410,-372.99804426,0.00027377,2]
[364778102,1749239432438,-5150.48054493,0.00027377,2]
[364778103,1749239432449,-2055.21380279,0.00027377,2]
[364778104,1749239432471,-704.41414524,0.00027377,2]
[364778312,1749239439762,-130315.15550348,0.00027377,2]
[364778314,1749239439772,-828.83811279,0.00027379,2]
[364778316,1749239439782,-153269.620375,0.00027387,2]
[364778318,1749239439791,-211.35890643,0.00027387,2]
[364778320,1749239439801,-150.27,0.00027396,2]
[364778322,1749239439811,-177.6221526,0.00027396,2]
[364778324,1749239439820,-435.02125896,0.00027397,5]
[364778326,1749239439829,-480.0,0.00027397,5]
[364778328,1749239439838,-480.0,0.00027397,5]
[364778330,1749239439847,-480.0,0.00027397,5]
[364778332,1749239439857,-480.0,0.00027397,5]
[364778334,1749239439866,-480.0,0.00027397,5]
[364778336,1749239439875,-480.0,0.00027397,5]
[364778338,1749239439884,-600.0,0.00027397,30]
[364778340,1749239439893,-480.0,0.00027397,5]
[364778342,1749239439904,-169.38720944,0.00027397,5]
[364778343,1749239439914,-480.0,0.00027397,5]
[364778345,1749239439923,-480.0,0.00027397,5]
[364778347,1749239439933,-480.0,0.00027397,5]
[364778349,1749239439943,-480.0,0.00027397,5]
[364778351,1749239439954,-225.42699899,0.00027397,5]
[364778353,1749239439964,-480.0,0.00027397,5]
[364778356,1749239439973,-866.35,0.00027397,5]
[364778358,1749239439985,-480.0,0.00027397,5]
[364778360,1749239439995,-480.0,0.00027397,5]
[364778362,1749239440004,-480.0,0.00027397,5]
[364778364,1749239440013,-500.0,0.00027397,2]
[364778366,1749239440023,-500.0,0.00027397,2]
[364778368,1749239440031,-500.0,0.00027397,2]
[364778370,1749239440041,-500.0,0.00027397,2]
[364778372,1749239440051,-514.89713408,0.00027397,2]
[364778400,1749239440318,-480.0,0.00027397,5]
[364778402,1749239440328,-480.0,0.00027397,5]
[364778404,1749239440337,-480.0,0.00027397,5]
[364778406,1749239440347,-480.0,0.00027397,5]
[364778408,1749239440356,-480.0,0.00027397,5]
[364778410,1749239440366,-460.0,0.00027397,5]
[364778412,1749239440375,-480.0,0.00027397,5]
[364778414,1749239440384,-480.0,0.00027397,5]
[364778416,1749239440394,-480.0,0.00027397,5]
[364778418,1749239440403,-480.0,0.00027397,5]
[364778420,1749239440412,-480.0,0.00027397,5]
[364778422,1749239440422,-480.0,0.00027397,5]
[364778424,1749239440431,-480.0,0.00027397,5]
[364778426,1749239440440,-480.0,0.00027397,5]
[364778427,1749239440451,-480.0,0.00027397,5]
[364778429,1749239440460,-480.0,0.00027397,5]
[364778431,1749239440469,-480.0,0.00027397,5]
[364778433,1749239440479,-481.95,0.00027397,5]
[364778435,1749239440488,-480.0,0.00027397,5]
[364778437,1749239440497,-480.0,0.00027397,5]
[364778439,1749239440506,-480.0,0.00027397,5]
[364778441,1749239440515,-480.0,0.00027397,5]
[364778443,1749239440525,-480.0,0.00027397,5]
[364778445,1749239440535,-480.0,0.00027397,5]
[364778447,1749239440544,-480.0,0.00027397,5]
[364778449,1749239440553,-480.0,0.00027397,5]
[364778451,1749239440563,-480.0,0.00027397,5]
[364778453,1749239440573,-480.0,0.00027397,5]
[364778455,1749239440582,-480.0,0.00027397,5]
[364778457,1749239440592,-480.0,0.00027397,5]
[364778459,1749239440601,-480.0,0.00027397,5]
[364778461,1749239440610,-480.0,0.00027397,5]
[364778463,1749239440620,-1856.7,0.00027397,5]
[364778465,1749239440629,-480.0,0.00027397,5]
[364778467,1749239440639,-480.0,0.00027397,2]
[364778469,1749239440649,-480.0,0.00027397,5]
[364778471,1749239440658,-480.0,0.00027397,5]
[364778473,1749239440667,-480.0,0.00027397,5]
[364778475,1749239440676,-480.0,0.00027397,5]
[364778477,1749239440686,-522.17166458,0.00027397,5]
[364778479,1749239440696,-480.0,0.00027397,5]
[364778480,1749239440706,-480.0,0.00027397,5]
[364778481,1749239440715,-2000.0,0.00027397,5]
[364778482,1749239440725,-480.42,0.00027397,5]
[364778483,1749239440734,-480.0,0.00027397,5]
[364778484,1749239440743,-655.74,0.00027397,5]
[364778485,1749239440753,-480.0,0.00027397,5]
[364778486,1749239440762,-480.0,0.00027397,5]
[364778487,1749239440771,-1023.94,0.00027397,5]
[364778488,1749239440781,-460.0,0.00027397,5]
[364778489,1749239440791,-480.0,0.00027397,5]
[364778491,1749239440801,-684.25,0.00027397,5]
[364778492,1749239440810,-480.0,0.00027397,5]
[364778494,1749239440819,-300.0,0.00027397,5]
[364778496,1749239440829,-480.0,0.00027397,5]
[364778498,1749239440838,-480.0,0.00027397,5]
[364778500,1749239440847,-480.0,0.00027397,5]
[364778502,1749239440857,-480.0,0.00027397,5]
[364778504,1749239440866,-566.82,0.00027397,5]
[364778506,1749239440875,-327.8008773,0.00027397,5]
[364778508,1749239440884,-480.0,0.00027397,5]
[364778510,1749239440893,-480.0,0.00027397,5]
[364778512,1749239440903,-1067.88,0.00027397,5]
[364778514,1749239440916,-480.0,0.00027397,5]
[364778516,1749239440925,-480.0,0.00027397,5]
[364778518,1749239440935,-429.93963937,0.00027397,5]
[364778520,1749239440944,-480.0,0.00027397,5]
[364778522,1749239440953,-432.83232428,0.00027397,5]
[364778524,1749239440963,-480.0,0.00027397,5]
[364778526,1749239440973,-480.0,0.00027397,5]
[364778528,1749239440982,-480.0,0.00027397,5]
[364778530,1749239440992,-480.0,0.00027397,5]
[364778532,1749239441002,-480.0,0.00027397,5]
[364778535,1749239441011,-480.0,0.00027397,5]
[364778536,1749239441020,-480.0,0.00027397,5]
[364778539,1749239441031,-843.19,0.00027397,5]
[364778540,1749239441040,-480.0,0.00027397,5]
[364778542,1749239441048,-480.0,0.00027397,5]
[364778544,1749239441058,-510.8,0.00027397,5]
[364778546,1749239441068,-480.0,0.00027397,5]
[364778548,1749239441078,-483.35347419,0.00027397,5]
[364778550,1749239441087,-480.0,0.00027397,5]
[364778553,1749239441099,-480.0,0.00027397,5]
[364778555,1749239441109,-480.0,0.00027397,5]
[364778556,1749239441118,-480.0,0.00027397,5]
[364778559,1749239441128,-480.64535471,0.00027397,5]
[364778561,1749239441137,-480.0,0.00027397,5]
[364778562,1749239441147,-480.0,0.00027397,5]
[364778564,1749239441156,-480.0,0.00027397,5]
[364778566,1749239441165,-480.0,0.00027397,5]
[364778568,1749239441175,-480.0,0.00027397,5]
[364778570,1749239441184,-480.0,0.00027397,5]
[364778572,1749239441194,-480.0,0.00027397,5]
[364778574,1749239441203,-480.0,0.00027397,5]
[364778576,1749239441212,-480.0,0.00027397,5]
[364778578,1749239441221,-480.0,0.00027397,5]
[364778581,1749239441232,-454.9459083,0.00027397,5]
[364778583,1749239441242,-480.0,0.00027397,5]
[364778585,1749239441253,-595.04,0.00027397,5]
[364778586,1749239441262,-480.0,0.00027397,5]
[364778588,1749239441271,-579.01,0.00027397,5]
[364778590,1749239441280,-480.0,0.00027397,5]
[364778592,1749239441290,-480.0,0.00027397,5]
[364778594,1749239441299,-480.0,0.00027397,5]
[364778596,1749239441308,-480.0,0.00027397,5]
[364778598,1749239441317,-480.0,0.00027397,5]
[364778601,1749239441327,-480.0,0.00027397,5]
[364778603,1749239441336,-480.0,0.00027397,5]
[364778605,1749239441346,-480.0,0.00027397,5]
[364778606,1749239441355,-480.0,0.00027397,5]
[364778608,1749239441364,-589.32,0.00027397,5]
[364778610,1749239441373,-480.0,0.00027397,5]
[364778612,1749239441382,-480.0,0.00027397,5]
[364778614,1749239441391,-480.0,0.00027397,5]
[364778616,1749239441400,-480.0,0.00027397,5]
[364778618,1749239441409,-480.0,0.00027397,5]
[364778620,1749239441418,-502.98,0.00027397,5]
[364778622,1749239441427,-480.0,0.00027397,5]
[364778624,1749239441436,-480.0,0.00027397,5]
[364778626,1749239441447,-480.0,0.00027397,5]
[364778628,1749239441455,-565.77,0.00027397,5]
[364778630,1749239441464,-480.0,0.00027397,5]
[364778632,1749239441474,-480.0,0.00027397,5]
[364778634,1749239441483,-511.2,0.00027397,5]
[364778636,1749239441492,-498.7359734,0.00027397,5]
[364778638,1749239441502,-506.06873661,0.00027397,5]
[364778640,1749239441511,-485.83058293,0.00027397,5]
[364778642,1749239441520,-480.0,0.00027397,5]
[364778644,1749239441530,-480.0,0.00027397,5]
[364778646,1749239441539,-485.31481093,0.00027397,5]
[364778647,1749239441549,-480.0,0.00027397,5]
[364778649,1749239441558,-778.63,0.00027397,5]
[364778651,1749239441567,-487.91355193,0.00027397,5]
[364778653,1749239441576,-480.0,0.00027397,5]
[364778655,1749239441585,-676.42,0.00027397,5]
[364778657,1749239441595,-480.0,0.00027397,5]
[364778659,1749239441604,-480.0,0.00027397,5]
[364778661,1749239441614,-154.75414649,0.00027397,5]
[364778663,1749239441623,-480.0,0.00027397,5]
[364778665,1749239441632,-480.0,0.00027397,5]
[364778667,1749239441642,-480.0,0.00027397,5]
[364778669,1749239441651,-818.4,0.00027397,5]
[364778671,1749239441660,-300.0,0.00027397,5]
[364778673,1749239441669,-480.0,0.00027397,5]
[364778675,1749239441678,-480.0,0.00027397,5]
[364778677,1749239441688,-480.0,0.00027397,5]
[364778679,1749239441698,-480.0,0.00027397,5]
[364778681,1749239441707,-567.01,0.00027397,5]
[364778683,1749239441716,-480.0,0.00027397,5]
[364778685,1749239441725,-480.0,0.00027397,5]
[364778687,1749239441734,-480.0,0.00027397,5]
[364778689,1749239441743,-480.0,0.00027397,5]
[364778691,1749239441753,-480.0,0.00027397,5]
[364778693,1749239441761,-476.29895915,0.00027397,5]
[364778695,1749239441771,-500.0,0.00027397,5]
[364778697,1749239441780,-500.0,0.00027397,5]
[364778699,1749239441790,-500.0,0.00027397,5]
[364778701,1749239441799,-500.0,0.00027397,5]
[364778703,1749239441808,-500.0,0.00027397,5]
[364778704,1749239441817,-480.0,0.00027397,5]
[364778706,1749239441826,-500.0,0.00027397,5]
[364778708,1749239441835,-480.0,0.00027397,5]
[364778710,1749239441844,-480.0,0.00027397,5]
[364778712,1749239441853,-480.0,0.00027397,5]
[364778714,1749239441863,-480.0,0.00027397,5]
[364778716,1749239441872,-480.0,0.00027397,5]
[364778718,1749239441881,-480.0,0.00027397,5]
[364778720,1749239441890,-480.0,0.00027397,5]
[364778722,1749239441900,-480.0,0.00027397,5]
[364778724,1749239441913,-883.1,0.00027397,5]